Workbook

Sheet Расходы
A2: Аналитические данные о расходах бюджета Заволжского муниципального района по разделам и подразделам классификации расходов за 2024 год в сравнении с соответствующим периодом 2023 года
A4: Наименование показателя | B4: Код классификации расходов бюджетов Российской Федерации | H4: Исполнено за 2023 год (руб.) | O4: Исполнено за 2024 год (руб.) | P4: Рост (снижение) 2024 года к 2023 году (по состоянию на 1 января 2025 года)
C5: бюджет субъекта Российской Федерации | D5: бюджеты внутри- городских муниципальных образований городов федерального значения | E5: бюджеты городских округов | F5: бюджеты городских округов с внутри- городским делением | G5: бюджеты внутри- городских районов | I5: бюджет территориаль- ного государ- ственного внебюджетного фонда | J5: бюджет субъекта Российской Федерации | K5: бюджеты внутри- городских муниципальных образований городов федерального значения | L5: бюджеты городских округов | M5: бюджеты городских округов с внутри- городским делением | N5: бюджеты внутри- городских районов | P5: в % (гр.4/гр.3*100) | Q5: в руб. (гр.4-гр.3)
A6: 1 | B6: 2 | C6: 8 | D6: 9 | E6: 10 | F6: 11 | G6: 12 | H6: 3 | I6: 16 | J6: 21 | K6: 22 | L6: 23 | M6: 24 | N6: 25 | O6: 4 | P6: 5 | Q6: 6
A7: Расходы бюджета - ИТОГО | B7: х | C7: 0.00 | D7: 0.00 | E7: 0.00 | F7: 0.00 | G7: 0.00 | H7: =H9+H17+H20+H25+H33+H40+H42+H47+H30 -> 1,544,874,339.91 | I7: =I9+I17+I20+I25+I33+I40+I42+I47+I30 -> 43,514,816.32 | J7: 50,834,306.25 | K7: 43,514,816.32 | L7: 50,834,306.25 | M7: 43,514,816.32 | N7: 50,834,306.25 | O7: 1,129,661,674.59 | P7: =O7/H7*100 -> 73.12 | Q7: =O7-H7 -> -415,212,665.32
A8: в том числе:
A9: ОБЩЕГОСУДАРСТВЕННЫЕ ВОПРОСЫ | B9: 000 0100 0000000000 000 | C9: 0.00 | D9: 0.00 | E9: 0.00 | F9: 0.00 | G9: 0.00 | H9: =H10+H11+H13+H16+H12 -> 61,507,149.56 | I9: =I10+I11+I13+I16+I12 -> 43,514,816.32 | J9: 50,834,306.25 | K9: 43,514,816.32 | L9: 50,834,306.25 | M9: 43,514,816.32 | N9: 50,834,306.25 | O9: 80,763,736.86 | P9: =O9/H9*100 -> 131.31 | Q9: =O9-H9 -> 19,256,587.30
A10: Функционирование высшего должностного лица субъекта Российской Федерации и муниципального образования | B10: 000 0102 0000000000 000 | C10: 0.00 | D10: 0.00 | E10: 0.00 | F10: 0.00 | G10: 0.00 | H10: 1,921,697.24 | I10: 1,921,697.24 | J10: 1,935,247.00 | K10: 1,921,697.24 | L10: 1,935,247.00 | M10: 1,921,697.24 | N10: 1,935,247.00 | O10: 3,293,146.47 | P10: =O10/H10*100 -> 171.37 | Q10: 1,371,449.23
A11: Функционирование Правительства Российской Федерации, высших исполнительных органов государственной власти субъектов Российской Федерации, местных администраций | B11: 000 0104 0000000000 000 | C11: 0.00 | D11: 0.00 | E11: 0.00 | F11: 0.00 | G11: 0.00 | H11: 29,827,132.38 | I11: 29,827,132.38 | J11: 31,117,066.53 | K11: 29,827,132.38 | L11: 31,117,066.53 | M11: 29,827,132.38 | N11: 31,117,066.53 | O11: 41,326,528.92 | P11: 138.55 | Q11: 11,499,396.54
A12: Судебная система | B12: 000 0105 0000000000 000 | H12: 0.00 | O12: 0.00 | Q12: 0.00
A13: Обеспечение деятельности финансовых, налоговых и таможенных органов и органов финансового (финансово-бюджетного) надзора | B13: 000 0106 0000000000 000 | C13: 0.00 | D13: 0.00 | E13: 0.00 | F13: 0.00 | G13: 0.00 | H13: 5,882,993.35 | I13: 5,882,993.35 | J13: 8,890,996.36 | K13: 5,882,993.35 | L13: 8,890,996.36 | M13: 5,882,993.35 | N13: 8,890,996.36 | O13: 7,989,014.48 | P13: 135.80 | Q13: 2,106,021.13
A14: Резервные фонды | B14: 000 0111 0000000000 000 | C14: 0.00 | D14: 0.00 | E14: 0.00 | F14: 0.00 | G14: 0.00 | H14: 8,890,996.36 | I14: 5,882,993.35 | J14: 8,890,996.36 | K14: 5,882,993.35 | L14: 8,890,996.36 | M14: 5,882,993.35 | N14: 8,890,996.36 | O14: 5,882,993.35 | P14: 66.17 | Q14: -3,008,003.01
A15: Резервные фонды | B15: 000 0111 0000000000 000 | H15: 0.00 | O15: 0.00 | Q15: 0.00
A16: Другие общегосударственные вопросы | B16: 000 0113 0000000000 000 | C16: 0.00 | D16: 0.00 | E16: 0.00 | F16: 0.00 | G16: 0.00 | H16: 23,875,326.59 | I16: 5,882,993.35 | J16: 8,890,996.36 | K16: 5,882,993.35 | L16: 8,890,996.36 | M16: 5,882,993.35 | N16: 8,890,996.36 | O16: 28,155,046.99 | P16: 117.93 | Q16: 4,279,720.40
A17: НАЦИОНАЛЬНАЯ БЕЗОПАСНОСТЬ И ПРАВООХРАНИТЕЛЬНАЯ ДЕЯТЕЛЬНОСТЬ | B17: 000 0300 0000000000 000 | C17: 0.00 | D17: 0.00 | E17: 0.00 | F17: 0.00 | G17: 0.00 | H17: =H18+H19 -> 2,040,606.00 | I17: =I18+I19 -> 0.00 | J17: 0.00 | K17: 0.00 | L17: 0.00 | M17: 0.00 | N17: 0.00 | O17: 1,976,972.55 | P17: 96.88 | Q17: -63,633.45
A18: Защита населения и территории от чрезвычайных ситуаций природного и техногенного характера, пожарная безопасность | B18: 000 0310 0000000000 000 | C18: 0.00 | D18: 0.00 | E18: 0.00 | F18: 0.00 | G18: 0.00 | H18: 2,040,606.00 | I18: 0.00 | J18: 0.00 | K18: 0.00 | L18: 0.00 | M18: 0.00 | N18: 0.00 | O18: 1,621,699.00 | P18: 79.47 | Q18: -418,907.00
A19: Другие вопросы в области национальной безопасности и прправоохранительной деятельности | B19: 000 0314 0000000000 000 | H19: 0.00 | O19: 355,273.55 | Q19: 355,273.55
A20: НАЦИОНАЛЬНАЯ ЭКОНОМИКА | B20: 000 0400 0000000000 000 | C20: 0.00 | D20: 0.00 | E20: 0.00 | F20: 0.00 | G20: 0.00 | H20: =H22+H23+H24 -> 26,394,447.66 | I20: =I22+I23+I24 -> 0.00 | J20: 0.00 | K20: 0.00 | L20: 0.00 | M20: 0.00 | N20: 0.00 | O20: 40,172,021.94 | P20: 152.20 | Q20: 13,777,574.28
A21: Сельское хозяйство и рыболовство | B21: 000 0405 0000000000 000 | C21: 0.00 | D21: 0.00 | E21: 0.00 | F21: 0.00 | G21: 0.00 | H21: 0.00 | I21: 0.00 | J21: 0.00 | K21: 0.00 | L21: 0.00 | M21: 0.00 | N21: 0.00 | O21: 0.00 | P21: 0.00 | Q21: 0.00
A22: Сельское хозяйство и рыболовство | B22: 000 0405 0000000000 000 | C22: 0.00 | D22: 0.00 | E22: 0.00 | F22: 0.00 | G22: 0.00 | H22: 600,380.87 | I22: 0.00 | J22: 0.00 | K22: 0.00 | L22: 0.00 | M22: 0.00 | N22: 0.00 | O22: 533,488.00 | P22: 0.00 | Q22: -66,892.87
A23: Транспорт | B23: 000 0408 0000000000 000 | C23: 0.00 | D23: 0.00 | E23: 0.00 | F23: 0.00 | G23: 0.00 | H23: 150,000.00 | I23: 0.00 | J23: 0.00 | K23: 0.00 | L23: 0.00 | M23: 0.00 | N23: 0.00 | O23: 350,000.00 | P23: 233.33 | Q23: 200,000.00
A24: Дорожное хозяйство (дорожные фонды) | B24: 000 0409 0000000000 000 | C24: 0.00 | D24: 0.00 | E24: 0.00 | F24: 0.00 | G24: 0.00 | H24: 25,644,066.79 | I24: 0.00 | J24: 0.00 | K24: 0.00 | L24: 0.00 | M24: 0.00 | N24: 0.00 | O24: 39,288,533.94 | P24: 153.21 | Q24: 13,644,467.15
A25: ЖИЛИЩНО-КОММУНАЛЬНОЕ ХОЗЯЙСТВО | B25: 000 0500 0000000000 000 | C25: 0.00 | D25: 0.00 | E25: 0.00 | F25: 0.00 | G25: 0.00 | H25: =H26+H27+H28+H29 -> 47,352,874.71 | I25: =I26+I27+I28+I29 -> 0.00 | J25: 0.00 | K25: 0.00 | L25: 0.00 | M25: 0.00 | N25: 0.00 | O25: 65,607,472.18 | P25: 138.55 | Q25: 18,254,597.47
A26: Жилищное хозяйство | B26: 000 0501 0000000000 000 | H26: 5,386,133.41 | O26: 11,504,500.56 | P26: 213.59 | Q26: 6,118,367.15
A27: Коммунальное хозяйство | B27: 000 0502 0000000000 000 | C27: 0.00 | D27: 0.00 | E27: 0.00 | F27: 0.00 | G27: 0.00 | H27: 32,957,658.04 | I27: 0.00 | J27: 0.00 | K27: 0.00 | L27: 0.00 | M27: 0.00 | N27: 0.00 | O27: 31,341,000.00 | P27: 95.09 | Q27: -1,616,658.04
A28: Благоустройство | B28: 000 0503 0000000000 000 | H28: 972,049.21 | O28: 20,461,230.80 | P28: 2,104.96 | Q28: 19,489,181.59
A29: Другие вопросы в области жилищно-коммунального хозяйства | B29: 000 0505 0000000000 000 | H29: 8,037,034.05 | O29: 2,300,740.82 | P29: 28.63 | Q29: -5,736,293.23
A30: ОХРАНА ОКРУЖАЮЩЕЙ СРЕДЫ | B30: 000 0600 0000000000 000 | H30: =H31+H32 -> 884,212,957.85 | I30: =I31+I32 -> 0.00 | J30: 0.00 | K30: 0.00 | L30: 0.00 | M30: 0.00 | N30: 0.00 | O30: 617,734,222.48 | P30: 69.86 | Q30: -266,478,735.37
A31: Сбор, удаление отходов и очистка сточных вод | B31: 000 0602 0000000000 000 | H31: 14,690.00 | O31: 565,917.00 | P31: 3,852.40 | Q31: 551,227.00
A32: Охрана объектов растительного и животного мира и среды их обитания | B32: 000 0603 0000000000 000 | H32: 884,198,267.85 | O32: 617,168,305.48 | P32: 69.80 | Q32: -267,029,962.37
A33: ОБРАЗОВАНИЕ | B33: 000 0700 0000000000 000 | C33: 0.00 | D33: 0.00 | E33: 0.00 | F33: 0.00 | G33: 0.00 | H33: =H34+H35+H36+H37+H38+H39 -> 501,832,545.59 | I33: =I34+I35+I36+I37+I38+I39 -> 0.00 | J33: 0.00 | K33: 0.00 | L33: 0.00 | M33: 0.00 | N33: 0.00 | O33: 296,657,182.36 | P33: 59.11 | Q33: -205,175,363.23
A34: Дошкольное образование | B34: 000 0701 0000000000 000 | C34: 0.00 | D34: 0.00 | E34: 0.00 | F34: 0.00 | G34: 0.00 | H34: 94,427,405.25 | I34: 0.00 | J34: 0.00 | K34: 0.00 | L34: 0.00 | M34: 0.00 | N34: 0.00 | O34: 100,278,698.54 | P34: 106.20 | Q34: 5,851,293.29
A35: Общее образование | B35: 000 0702 0000000000 000 | C35: 0.00 | D35: 0.00 | E35: 0.00 | F35: 0.00 | G35: 0.00 | H35: 373,752,074.71 | I35: 0.00 | J35: 0.00 | K35: 0.00 | L35: 0.00 | M35: 0.00 | N35: 0.00 | O35: 155,370,898.32 | P35: 41.57 | Q35: -218,381,176.39
A36: Допонительное образование детей | B36: 000 0703 0000000000 000 | C36: 0.00 | D36: 0.00 | E36: 0.00 | F36: 0.00 | G36: 0.00 | H36: 19,579,924.07 | I36: 0.00 | J36: 0.00 | K36: 0.00 | L36: 0.00 | M36: 0.00 | N36: 0.00 | O36: 24,083,698.56 | P36: 123.00 | Q36: 4,503,774.49
A37: Профессиональная подготовка, переподготовка и повышение квалификации | B37: 000 0705 0000000000 000 | C37: 0.00 | D37: 0.00 | E37: 0.00 | F37: 0.00 | G37: 0.00 | H37: 75,200.00 | I37: 0.00 | J37: 0.00 | K37: 0.00 | L37: 0.00 | M37: 0.00 | N37: 0.00 | O37: 18,000.00 | P37: 23.94 | Q37: -57,200.00
A38: Молодежная политика | B38: 000 0707 0000000000 000 | C38: 0.00 | D38: 0.00 | E38: 0.00 | F38: 0.00 | G38: 0.00 | H38: 1,600.00 | I38: 0.00 | J38: 0.00 | K38: 0.00 | L38: 0.00 | M38: 0.00 | N38: 0.00 | O38: 111,500.00 | P38: 6,968.75 | Q38: 109,900.00
A39: Другие вопросы в области образования | B39: 000 0709 0000000000 000 | C39: 0.00 | D39: 0.00 | E39: 0.00 | F39: 0.00 | G39: 0.00 | H39: 13,996,341.56 | I39: 0.00 | J39: 0.00 | K39: 0.00 | L39: 0.00 | M39: 0.00 | N39: 0.00 | O39: 16,794,386.94 | P39: 119.99 | Q39: 2,798,045.38
A40: КУЛЬТУРА, КИНЕМАТОГРАФИЯ | B40: 000 0800 0000000000 000 | C40: 0.00 | D40: 0.00 | E40: 0.00 | F40: 0.00 | G40: 0.00 | H40: =H41 -> 4,906,947.38 | I40: =I41 -> 0.00 | J40: 0.00 | K40: 0.00 | L40: 0.00 | M40: 0.00 | N40: 0.00 | O40: 5,157,755.66 | P40: 105.11 | Q40: 250,808.28
A41: Культура | B41: 000 0801 0000000000 000 | C41: 0.00 | D41: 0.00 | E41: 0.00 | F41: 0.00 | G41: 0.00 | H41: 4,906,947.38 | I41: 0.00 | J41: 0.00 | K41: 0.00 | L41: 0.00 | M41: 0.00 | N41: 0.00 | O41: 5,157,755.66 | P41: 105.11 | Q41: 250,808.28
A42: СОЦИАЛЬНАЯ ПОЛИТИКА | B42: 000 1000 0000000000 000 | C42: 0.00 | D42: 0.00 | E42: 0.00 | F42: 0.00 | G42: 0.00 | H42: =H43+H44+H45+H46 -> 5,808,520.91 | I42: =I43+I44+I45+I46 -> 0.00 | J42: 0.00 | K42: 0.00 | L42: 0.00 | M42: 0.00 | N42: 0.00 | O42: 8,904,991.09 | P42: 153.31 | Q42: 3,096,470.18
A43: Пенсионное обеспечение | B43: 000 1001 0000000000 000 | C43: 0.00 | D43: 0.00 | E43: 0.00 | F43: 0.00 | G43: 0.00 | H43: 2,419,313.66 | I43: 0.00 | J43: 0.00 | K43: 0.00 | L43: 0.00 | M43: 0.00 | N43: 0.00 | O43: 3,593,647.80 | P43: 148.54 | Q43: 1,174,334.14
A44: Социальное обеспечение населения | B44: 000 1003 0000000000 000 | C44: 0.00 | D44: 0.00 | E44: 0.00 | F44: 0.00 | G44: 0.00 | H44: 248,945.00 | I44: 0.00 | J44: 0.00 | K44: 0.00 | L44: 0.00 | M44: 0.00 | N44: 0.00 | O44: 595,482.50 | P44: 0.00 | Q44: 346,537.50
A45: Охрана семьи и детства | B45: 000 1004 0000000000 000 | C45: 0.00 | D45: 0.00 | E45: 0.00 | F45: 0.00 | G45: 0.00 | H45: 2,999,162.25 | I45: 0.00 | J45: 0.00 | K45: 0.00 | L45: 0.00 | M45: 0.00 | N45: 0.00 | O45: 2,615,860.79 | P45: 87.22 | Q45: -383,301.46
A46: Другие вопросы в области социальной политики | B46: 000 1006 0000000000 000 | H46: 141,100.00 | O46: 2,100,000.00 | P46: 1,488.31 | Q46: 1,958,900.00
A47: ФИЗИЧЕСКАЯ КУЛЬТУРА И СПОРТ | B47: 000 1100 0000000000 000 | C47: 0.00 | D47: 0.00 | E47: 0.00 | F47: 0.00 | G47: 0.00 | H47: =H48+H49 -> 10,818,290.25 | I47: =I48+I49 -> 0.00 | J47: 0.00 | K47: 0.00 | L47: 0.00 | M47: 0.00 | N47: 0.00 | O47: 12,687,319.47 | P47: 117.28 | Q47: 1,869,029.22
A48: Физическая культура | B48: 000 1101 0000000000 000 | H48: 486,948.71 | O48: 968,050.23 | P48: 198.80 | Q48: 481,101.52
A49: Спорт высших достижений | B49: 000 1103 0000000000 000 | C49: 0.00 | D49: 0.00 | E49: 0.00 | F49: 0.00 | G49: 0.00 | H49: 10,331,341.54 | I49: 0.00 | J49: 0.00 | K49: 0.00 | L49: 0.00 | M49: 0.00 | N49: 0.00 | O49: 11,719,269.24 | P49: 113.43 | Q49: 1,387,927.70
Q50: ""
